Cogmind - Beta 13 @@@ ROGUE MODE // 2024.04.15 @ 14:35:51 Player: Mogwok Wargfriend Result: Destroyed by G-47 Trooper with Particle Gun Performance ------------- Evolutions (2) 1000 Regions Visited (5) 1000 Robots Destroyed (32) 160 Value Destroyed (933) 933 Prototype IDs (7) 140 Alien Tech Used (0) 0 Bonus (117) 117 TOTAL SCORE: 3350 Bonus ------- High Alert Combat Kills 120 Follower Combat Kills 278 Friendly Fire -281 Cogmind --------- Core Integrity 0/550 Matter 300/300 Energy 160/160 System Corruption 0% Temperature Cool (9) Movement Treading (160) Location -8/Storage Parts ------- > --- POWER (1) -------- Light Nuclear Core > --- PROPULSION (3) --- Light Treads Improved Flight Unit > --- UTILITY (5) ------ Small Storage Unit Weight Redist. System Propulsion Shielding Light Armor Plating > --- WEAPON (2) ------- Katana Scythe > --- INVENTORY (8) ---- Improved Ion Engine Advanced Visual Processing Unit Improved EM Shotgun Improved EM Shotgun Mini Grenade Launcher Mining Laser Peak State ------------ > --- POWER ------------ Heavy Ion Engine > --- PROPULSION ------- Flight Unit VTOL Module Improved Flight Unit > --- UTILITY ---------- Small Storage Unit Weight Redist. System Sensor Array Propulsion Shielding Hacking Suite > --- WEAPON ----------- Heavy Particle Gun Katana > --- INVENTORY -------- Light Ion Engine Flight Unit Advanced Visual Processing Unit Propulsion Shielding EM Shotgun Improved EM Shotgun Mini Grenade Launcher Mining Laser [Rating: 25] Favorites ----------- Power Light Ion Engine Engine Light Ion Engine Power Core Light Nuclear Core Propulsion Flight Unit Treads Light Treads Wheel Wheel Hover Unit Improved Hover Unit Flight Unit Flight Unit Utility Small Storage Unit Device Sensor Array Storage Small Storage Unit Hackware Hacking Suite Protection Propulsion Shielding Weapon Assault Rifle Energy Gun EM Shotgun Ballistic Gun Assault Rifle Launcher Mini Grenade Launcher Slashing Weapon Katana Build | -11 -10 -9 -9 -8 -8 ------- Run | Yrd Mat Mat Min Mat Sto Slots Evolved 4 | . . 2 . 2 . Power . | . . . . . . Propulsion 1 | . . 1 . . . Utility 3 | . . 1 . 2 . Weapon . | . . . . . . Parts Attached 45 | 7 5 4 1 7 21 Power 7 | 1 1 . . . 5 Engine 5 | 1 1 . . . 3 Core 2 | . . . . . 2 Reactor . | . . . . . . Propulsion 13 | 2 2 2 . 2 5 Treads 1 | . . . . . 1 Leg . | . . . . . . Wheel 2 | 2 . . . . . Hover 1 | . . . . . 1 Flight 9 | . 2 2 . 2 3 Utility 8 | 2 1 1 . 2 2 Device 3 | 1 1 . . 1 . Storage 1 | 1 . . . . . Processor . | . . . . . . Hackware 1 | . . . . 1 . Protection 3 | . . 1 . . 2 Artifact . | . . . . . . Weapon 17 | 2 1 1 1 3 9 Energy Gun 9 | 1 1 1 1 2 3 Energy Cannon . | . . . . . . Ballistic Gun 2 | 1 . . . . 1 Ballistic Cannon . | . . . . . . Launcher 2 | . . . . . 2 Special Weapon . | . . . . . . Impact Weapon . | . . . . . . Slashing Weapon 4 | . . . . 1 3 Piercing Weapon . | . . . . . . Special Melee Weapon . | . . . . . . Unidentified Prototypes 7 | . . . . 1 6 Parts Lost 11 | . . . . 2 9 Power 3 | . . . . . 3 Propulsion 6 | . . . . 2 4 Utility 2 | . . . . . 2 Weapon . | . . . . . . Highest Loss Streak 9 | . . . . 1 9 To Critical Strikes . | . . . . . . Average Slot Usage (%) 88 | . 98 80 77 89 81 Engine 9 | . 14 11 11 9 5 Wheel 8 | . 25 . . . . Flight 16 | . 2 33 33 27 18 Device 14 | . 14 11 11 18 15 Storage 10 | . 14 11 11 9 9 Hackware 1 | . . . . 1 5 Protection 6 | . . 11 11 9 10 Energy Gun 7 | . 14 3 . 9 . Ballistic Gun 4 | . 12 . . . . Slashing Weapon 5 | . . . . 7 11 Naked Turns . | . . . . . . Heaviest Build 20 | 14 16 13 13 16 20 Greatest Support 26 | 20 20 12 12 18 26 Greatest Overweight (x) 4 | 4 3 1 1 . 2 Average Overweight (x) . | . . . . . . Largest Inventory Capacity 8 | 8 8 8 8 8 8 Average Capacity 7 | 7 8 8 8 8 8 Most Carried 8 | 7 8 8 8 8 8 Average Carried 7 | 5 7 7 7 7 7 Final Capacity 8 | 8 8 8 8 8 8 Final Carried 8 | 7 8 8 8 7 6 Class Distribution -------------------- 68% | Mutant 20% | Sprinter 6% | Commander-Sprinter 4% | Scavenger-Mutant Dominant Class ---------------- Mutant | -10/Materials Sprinter | -9/Materials Sprinter | -9/Mines Mutant | -8/Materials Mutant | -8/Storage Resources | -11 -10 -9 -9 -8 -8 ----------- Run | Yrd Mat Mat Min Mat Sto Matter Collected 800 | 333 62 55 10 45 295 Remotely . | . . . . . . Salvage Created 962 | 160 82 103 . 175 442 Parts 50 | 10 9 6 . 5 20 Haulers Intercepted 2 | . . 1 . . 1 Recyclers Shooed 2 | . 1 . . 1 . Parts Field Recycled . | . . . . . . Retrieved Matter . | . . . . . . Parts Self-Destructed . | . . . . . . Prevented . | . . . . . . Kills | -11 -10 -9 -9 -8 -8 ------- Run | Yrd Mat Mat Min Mat Sto Combat Hostiles Destroyed 17 | . 1 1 . 1 14 Melee 4 | . . . . . 4 Guns 2 | . 1 1 . . . AOE 11 | . . . . 1 10 Classes Destroyed 11 | 2 2 1 . . 6 Tunneler 3 | 3 . . . . . Hauler 2 | . . 1 . . 1 Recycler 3 | 1 . . . 1 1 Mechanic 1 | . . . . . 1 Operator 1 | . . . . . 1 Watcher 3 | . 2 . . 1 . Grunt 11 | . 1 1 . 1 8 Brawler 2 | . . . . . 2 Protector 1 | . . . . . 1 Sentry 2 | . . . . . 2 Demolisher 3 | . . . . . 3 Best Kill Streak 11 | 2 2 1 . 2 11 Combat Bots Only 8 | . 1 1 . 1 8 Max Kills in Single Turn 5 | 1 1 1 . 1 5 Gunslinging . | . . . . . . Exploded 3 | . . . . 1 3 Melee 1 | . . . . . 1 Uniques/NPCs Destroyed . | . . . . . . Combat | -11 -10 -9 -9 -8 -8 -------- Run | Yrd Mat Mat Min Mat Sto Hostile Shots Fired 92 | . 1 9 4 18 60 Missed 37 | . 1 2 3 8 23 Damage Taken 1336 | . . 88 11 165 1072 Core 625 | . . 61 11 50 503 Absorbed by Shields . | . . . . . . Redirected to Shielding 66 | . . 4 . 20 42 Core Remaining (%) 94 | 100 100 . 82 . . Volleys Fired 63 | 21 12 7 . 12 11 Largest 2 | 2 2 1 . 1 1 Hottest 60 | 60 60 45 . 45 30 Shots Fired 91 | 41 20 7 . 12 11 Gun 80 | 41 20 7 . 12 . Cannon . | . . . . . . Launcher 11 | . . . . . 11 Special . | . . . . . . Kinetic 30 | 21 9 . . . . Thermal 28 | 20 8 . . . . Explosive 11 | . . . . . 11 Electromagnetic 22 | . 3 7 . 12 . Robot Hit Streak 13 | 7 8 9 . 13 4 Robot Miss Streak 5 | 4 2 1 . 5 4 Penetration Max . | . . . . . . Secondary Targets . | . . . . . . Shots Hit Robots 72 | 19 15 7 . 13 18 Core Hits 68 | 5 6 4 . 8 45 Critical Kills . | . . . . . . Critical Parts Destroyed . | . . . . . . Critical Strikes 4 | . . . . 1 3 Sever 4 | . . . . 1 3 Melee Attacks 40 | . . . . 14 26 Impact . | . . . . . . Slashing 40 | . . . . 14 26 Piercing . | . . . . . . Sneak Attacks 2 | . . . . 1 1 Combat Hostiles . | . . . . . . Follow-up Attacks 1 | . . . . . 1 Damage Inflicted 2547 | 181 182 106 . 362 1716 Guns 601 | 181 182 104 . 134 . Cannons . | . . . . . . Explosions 1278 | . . . . 59 1219 Melee 666 | . . . . 169 497 Ramming 2 | . . 2 . . . Kinetic 129 | 73 56 . . . . Thermal 247 | 108 80 . . 59 . Explosive 1219 | . . . . . 1219 Electromagnetic 284 | . 46 104 . 134 . Impact . | . . . . . . Slashing 666 | . . . . 169 497 Piercing . | . . . . . . Highest Corruption 2 | . 2 . . . . Average Corruption 2 | . 2 . . . . Corruption Purged . | . . . . . . Corruption Blocked . | . . . . . . Effects 3 | . 3 . . . . Message Errors 1 | . 1 . . . . Matter Fused 1 | . 1 . . . . Heat Flow Errors 1 | . 1 . . . . Overload Shots . | . . . . . . Overflow Damage 69 | . . . . 42 27 Projectiles . | . . . . . . Explosions 26 | . . . . . 26 Melee 43 | . . . . 42 1 Knockbacks . | . . . . . . Impact . | . . . . . . Kinetic . | . . . . . . Secondary . | . . . . . . Self-Inflicted Damage 1 | . . 1 . . . Shots . | . . . . . . Rammed 2 | . 1 1 . . . Targets Rammed 2 | . 1 1 . . . Kicked . | . . . . . . Crushed . | . . . . . . Highest Temperature 190 | . 190 14 . 22 5 Average Temperature 17 | . 55 7 . 6 2 Received Heat Transfer 336 | . . 33 6 72 225 Siege Activations . | . . . . . . Robots Corrupted . | . . . . . . Combat Hostiles . | . . . . . . Parts Fried 1 | . . 1 . . . Impact Corruptions . | . . . . . . Robots Melted . | . . . . . . Combat Hostiles . | . . . . . . Parts Melted . | . . . . . . Heat Transferred 525 | 250 175 . . 100 . Parts Sabotaged . | . . . . . . Parts Stolen . | . . . . . . Parts Stripped . | . . . . . . Power Chain Reactions 1 | . . . . 1 . Alert | -11 -10 -9 -9 -8 -8 ------- Run | Yrd Mat Mat Min Mat Sto Peak Influence 586 | 20 68 173 112 176 586 Initial 69 | . 13 11 67 43 69 Average 127 | 8 35 52 94 114 317 Maximum Alert Level 2 | . . . . . 2 Low Security (%) 80 | 100 100 100 100 100 29 Level 1 11 | . . . . . 40 Level 2 8 | . . . . . 30 Level 3 . | . . . . . . Level 4 . | . . . . . . Level 5 . | . . . . . . High Security . | . . . . . . Max Security . | . . . . . . Squads Dispatched 7 | . 1 3 . 1 2 Investigation 2 | . 1 . . 1 . Extermination . | . . . . . . Reinforcement 3 | . . 3 . . . Assault 2 | . . . . . 2 Garrison . | . . . . . . Intercept . | . . . . . . Searches Triggered . | . . . . . . Construction Impeded . | . . . . . . Haulers Reinforced . | . . . . . . Active Scanning Responses . | . . . . . . Cargo Convoy Interrupts . | . . . . . . Stealth | -11 -10 -9 -9 -8 -8 --------- Run | Yrd Mat Mat Min Mat Sto Distress Signals 5 | . 1 1 . . 3 Communications Jammed . | . . . . . . Distress Signals . | . . . . . . Times Spotted 74 | . 4 17 2 14 37 Peak Tracking Total 13 | . 2 11 2 6 13 Tactical Retreats 7 | . . 1 1 2 3 Traps | -11 -10 -9 -9 -8 -8 ------- Run | Yrd Mat Mat Min Mat Sto Traps Triggered 3 | . 2 . . 1 . Indirectly . | . . . . . . Trap Hack Attempts . | . . . . . . Triggered . | . . . . . . Disarmed . | . . . . . . Reprogrammed . | . . . . . . Reused . | . . . . . . Traps Extracted . | . . . . . . Installed . | . . . . . . Triggered . | . . . . . . Machines | -11 -10 -9 -9 -8 -8 ---------- Run | Yrd Mat Mat Min Mat Sto Machines Disabled 4 | . . . . . 4 Max in Single Turn 1 | . . . . . 1 Machines Repaired . | . . . . . . Machines Dismantled . | . . . . . . Machines Sabotaged . | . . . . . . Overloaded Fab Kills . | . . . . . . Hacking | -11 -10 -9 -9 -8 -8 --------- Run | Yrd Mat Mat Min Mat Sto Machines Accessed 13 | . 5 1 . 1 6 Terminals 13 | . 5 1 . 1 6 Fabricators . | . . . . . . Repair Stations . | . . . . . . Recycling Units . | . . . . . . Scanalyzers . | . . . . . . Garrison Access . | . . . . . . Total Hacks 50 | . 22 2 . 4 22 Successful 23 | . 12 . . 2 9 Failed 27 | . 10 2 . 2 13 Catastrophic 2 | . 1 1 . . . Database Lockouts . | . . . . . . Manual 43 | . 22 2 . 4 15 Terminals 50 | . 22 2 . 4 22 Fabricators . | . . . . . . Repair Stations . | . . . . . . Recycling Units . | . . . . . . Scanalyzers . | . . . . . . Garrison Access . | . . . . . . Terminal Hacks 9 | . 6 . . . 3 Robot Analysis 5 | . 4 . . . 1 Terminal Index 1 | . 1 . . . . Unreport Threat 1 | . . . . . 1 Reprogram Traps 1 | . . . . . 1 Recall Investigation 1 | . 1 . . . . Fabricator Hacks . | . . . . . . Repair Station Hacks . | . . . . . . Recycling Unit Hacks . | . . . . . . Scanalyzer . | . . . . . . Garrison Access Hacks . | . . . . . . Unauthorized Hacks 14 | . 6 . . 2 6 Terminals 14 | . 6 . . 2 6 Track 1 | . . . . . 1 Botnet 10 | . 5 . . 1 4 Operators 3 | . 1 . . 1 1 Fabricators . | . . . . . . Repair Stations . | . . . . . . Recycling Units . | . . . . . . Scanalyzers . | . . . . . . Garrison Access . | . . . . . . Data Cores Recovered . | . . . . . . Used . | . . . . . . Hacking Detections 12 | . 5 1 . 1 5 Full Trace Events 1 | . 1 . . . . Feedback Events . | . . . . . . Feedback Blocked . | . . . . . . Robot Schematics Acquired . | . . . . . . Robots Built . | . . . . . . Authchips . | . . . . . . Time . | . . . . . . Total Robot Build Rating . | . . . . . . Part Schematics Acquired . | . . . . . . Parts Built . | . . . . . . Authchips . | . . . . . . Time . | . . . . . . Total Part Build Rating . | . . . . . . Parts Repaired . | . . . . . . Time . | . . . . . . Parts Recycled . | . . . . . . Recycled Matter . | . . . . . . Retrieved Matter . | . . . . . . Retrieved Components . | . . . . . . Parts Scanalyzed . | . . . . . . Part Schematics Acquired . | . . . . . . Parts Damaged . | . . . . . . Bothacking | -11 -10 -9 -9 -8 -8 ------------ Run | Yrd Mat Mat Min Mat Sto Used RIF Installer . | . . . . . . Robots Hacked . | . . . . . . Non-combat . | . . . . . . Combat . | . . . . . . Robot Hacks Applied . | . . . . . . Relay Couplers Released . | . . . . . . Fabnet Peak Effective % . | . . . . . . Robots Rewired . | . . . . . . Allies Hacked . | . . . . . . Hacks Repelled . | . . . . . . Allies | -11 -10 -9 -9 -8 -8 -------- Run | Yrd Mat Mat Min Mat Sto Total Allies 12 | . . . . . 12 Largest Group 10 | . . . . . 10 Highest-Rated Group 174 | . . . . . 174 Highest-Rated Ally 31 | . . . . . 31 Total Orders . | . . . . . . Ally Attacks 77 | . . . . . 77 Total Damage 1037 | . . . . . 1037 Kills 10 | . . . . . 10 Allies Corrupted . | . . . . . . Allies Melted . | . . . . . . Intel | -11 -10 -9 -9 -8 -8 ------- Run | Yrd Mat Mat Min Mat Sto Robot Analysis Total 5 | . 4 . . . 1 Derelict Logs Recovered . | . . . . . . Drone Launches . | . . . . . . Drone Recoveries . | . . . . . . Exploration | -11 -10 -9 -9 -8 -8 ------------- Run | Yrd Mat Mat Min Mat Sto Turns Passed 1805 | 210 543 168 65 328 491 Spaces Moved 2124 | 138 556 355 136 327 612 Core 61 | 18 1 . . . 42 Treads 49 | . . . . . 49 Legs . | . . . . . . Wheels 643 | 120 523 . . . . Hover 2 | . . . . . 2 Flight 1369 | . 32 355 136 327 519 Fastest Speed 32 | 50 80 32 32 32 32 Average Speed 54 | 92 82 37 34 33 46 Slowest Speed 250 | 250 200 114 112 37 160 Overloaded Moves . | . . . . . . Propulsion Burnouts . | . . . . . . Robots Hopped 15 | . . 10 5 . . Cave-ins Triggered . | . . . . . . Exploration Rate (%) 33 | 10 68 33 21 22 46 Regions Visited 5 Branch Regions 2 Pre-discovered Areas . | . . . . . . Known Exits Taken . | . . . . . . Unknown Exits Taken 5 | 1 1 1 1 1 . Scrap Searched 1 | . . . 1 . . Spaces Dug 13 | . . . . 9 4 Terrain Destroyed 71 | . . . . 14 57 Melee 13 | . . . . 9 4 Projectile . | . . . . . . AOE 58 | . . . . 5 53 Terrain Rammed . | . . . . . . Walls Destroyed . | . . . . . . Machines Disabled . | . . . . . . Actions | -11 -10 -9 -9 -8 -8 --------- Run | Yrd Mat Mat Min Mat Sto Total 2604 | 176 625 374 149 511 769 Wait 290 | . 34 10 16 148 82 Move 2091 | 137 555 336 125 326 612 Hop 13 | . . 8 5 . . Pick Up 22 | 9 6 3 1 2 1 Fast Attach 28 | 7 4 . 1 2 14 Attach 15 | . 1 3 . 5 6 Detach 13 | . 2 2 . 2 7 Swap 2 | . . 1 . . 1 Drop 25 | 2 10 3 1 . 9 Fire 63 | 21 12 7 . 12 11 Melee 39 | . . . . 14 25 Ram 2 | . 1 1 . . . Kick . | . . . . . . Crush . | . . . . . . Escape Stasis . | . . . . . . Rewire 1 | . . . . . 1 Trap . | . . . . . . Miscellaneous . | . . . . . . Route ------- -11/Scrapyard -10/Materials (discovered 3 exits: *Mat / [*Min x2]) -9/Materials -9/Mines (discovered 2 exits: *Mat x2) -8/Materials (discovered 2 exits: [*Fac] / *Sto) -8/Storage History --------- Turn | Location | Event 24 | -11/Scrapyard | Discovered new exit (range 15) 211 | -11/Scrapyard | Entered Materials 309 | -10/Materials | Build established: Mutant 357 | -10/Materials | Discovered new exit (range 14) 481 | -10/Materials | Discovered new exit (range 12) 625 | -10/Materials | Discovered new exit (range 11) 754 | -10/Materials | Entered another Materials area 754 | -9/Materials | Evolved 2 slots: Propulsion x1, Utility x1 919 | -9/Materials | Discovered new exit (range 10) 922 | -9/Materials | Entered Mines 973 | -9/Mines | Discovered new exit (range 7) 977 | -9/Mines | Discovered new exit (range 8) 987 | -9/Mines | Entered Materials 987 | -8/Materials | Evolved 2 slots: Utility x2 1122 | -8/Materials | Discovered new exit (range 15) 1297 | -8/Materials | Discovered new exit (range 7) 1315 | -8/Materials | Entered Storage 1468 | -8/Storage | Assisted by bots powering up and referring to "LRC-V3" 1519 | -8/Storage | Lost 3 allies 1550 | -8/Storage | Met a pair of Derelict thieves 1597 | -8/Storage | Core integrity fell below 50% 1618 | -8/Storage | Destroyed 8 combat bots 1622 | -8/Storage | Lost 9 allies 1641 | -8/Storage | Core integrity fell below 20% 1690 | -8/Storage | Lost 9 parts (3p4n2u) 1806 | -8/Storage | Destroyed by G-47 Trooper with Particle Gun Last Messages --------------- 01652_ K-01 Serf collects debris. 01653_ Door Terminal disabled. 01655_ Acquired Lgt. Nuclear Core. 01659_ Acquired 20 matter. 01659_ Lgt. Nuclear Core destroyed. 01664_ Destroyed Hvy. Laser. 01670_ G-50 Soldier destroyed. 01670_ W-25 Informer sends out distress signal. 01677_ The unstable cave ceiling collapses. 01678_ Acquired 10 matter. 01689_ Acquired Lgt. Treads. 01692_ Acquired Imp. Ion Engine. 01703_ Acquired Lgt. Nuclear Core. 01727_ Acquired Lgt. Armor Plating. 01738_ Acquired 40 matter. 01776_ W-25 Informer sends out distress signal. 01799_ G-47 Trooper Aluminum Leg severed. 01799_ Katana follow-up attack on G-47 Trooper. 01801_ G-47 Trooper Aluminum Leg severed. 01804_ G-47 Trooper destroyed. Map ----- +----------------------------------------------------+ | ## ### #????????????## #???????????? | | # #????????????## ##???????????? | | # ##???????????## #????????????? | | # % "????????????# #????????????? | | # """ "????????????# #????????????? | | # "" = "????????????# #????????????? | | # "" % # #????????????# #????????????? | | # "" ###????????????# #????????????? | | # """ #?????????????# #????????????? | | # # #?????????????# #????????????? | | # = % # #?????????????# #????????????? | | # ##?????????????# #????????????? | | # #??????????????# #????????????? | | ###### ##??????????????# #?????????##?? | | ?????## #???????????????# #?????#### #?? | | ??????# #???????????????# #????? ??? | | ??????# #???????????????# #???? ??? | | ??????# #???????????????# #???? ??? | | ??????# #???????????????# #??? ???? | | ??????# #???????????????# #??? ???? | | ####### #???????????????+ #?? """ ""???? | | # # #???????????????# ### """ ""???? | | # # #?###???????????# / """ ""???? | | # # ################# ##########???? | | # """ # # =gg #????????????? | | # """ # # """"@########+##????????????? | | # """ + + ""[[" #????? ????????????? | | # [ # # """ [" #???#""" ??????????? | | #[""" # # [ """ #???#""" #?????????? | | # """ # # "[ "" ##??#""" "#????????? | | #!""" # # """" ##??# T#????????? | | # # # ##??#""" "#????????? | | # ###############?????"" ##????????? | | #######????????????????????" #?????????? | | ??????????????????????????? #?????????? | | ???????????????????????????#### ##?????????? | | ???????????????????????????????##??????????? | | ???????????????????????????????????????????? | | ???????????????????????????????????????????? | | ???????????????????????????????????????????? | | ???????????????????????????????????????????? | | ???????????????????????????????????????????? | | ???????????????????????????????????????????? | | ???????????????????????????????????????????? | | | | | | | | | | | | | +----------------------------------------------------+ Best States ------------- Heat Dissipation 31 Energy Generation 14 Energy Capacity 280 Matter Stores 300 Matter Capacity 300 Sight Range 16 Robot Scan Range 14 Terrain Scan Density 10 Additional Mass Support 6 Armor Coverage 150 Propulsion Shielding 33 Evasion (%) 63 Recoil Reduction 1 Offensive Hacking 10 Item Schematics ----------------- None Robot Schematics ------------------ None Fabricated ------------ Nothing Alien Tech Used ----------------- None Achievements -------------- None Challenges ------------ None Game ------ Seed HellfireHypercooledLink Manual? 0 Play Time 00:28:12 Cumulative 170.1 hours Start 2024.04.14 @ 23:31:48 End 2024.04.15 @ 14:35:51 Sessions 2 Manual Loads 0 Difficulty Rogue Special Mode None Game No. 163 Rogue 163 Adventurer 0 Explorer 0 Win Type - Total 0 Types 0/0/0/0/0/0/0/0/0 Lore% 53 Gallery% 65 Achievement% 44 Wizard Run 0 Options --------- Layout 2 ASCII 1 Keyboard 1 Movement Numpad Keybinds 0 Fullscreen 2 Font 32/TamsynBold Map View 50x44 Zoom Use 0% Tactical HUD 1 Map Filters NONE Filters NONE Steam 1 RUN: 77b38add-3a97-40dc-a5a2-63ad757b91fd